bitfinex/quotes_ETHUSD_20220309
["timestamp","ask_amount","ask_price","bid_price","bid_amount"]
[1646812888015,0.38060761,2746.3,2745.9,0.91735384]
[1646812888218,0.2009,2746.5,2745.9,0.91735384]
[1646812888416,0.95149701,2746.7,2746.0,2.38656935]
[1646812888616,2.52806813,2746.9,2745.9,0.91735384]
[1646812888617,1.00576403,2746.9,2746.6,0.87809313]
[1646812888817,2.26249705,2747.1,2746.3,0.91086]
[1646812889021,0.00576435,2746.9,2746.3,0.91086]
[1646812889217,1.33673177,2746.8,2746.3,0.91086]
[1646812889618,3.16462612,2746.9,2746.3,0.91086]
[1646812889823,1.33673177,2746.8,2746.3,0.91086]
[1646812890123,1.63673177,2746.8,2746.3,0.91086]
[1646812891466,0.91107,2746.7,2746.0,0.96315219]
[1646812891663,1.82246,2746.5,2746.0,0.05197219]
[1646812892062,2.12246,2746.5,2746.0,0.05197219]
[1646812892764,3.18281948,2746.5,2746.0,0.05197219]
[1646812892964,2.12246,2746.5,2746.0,0.05197219]
[1646812893563,0.91122,2746.3,2746.0,0.05197219]
[1646812893964,1.21122,2746.3,2746.0,0.05197219]
[1646812894465,0.91122,2746.3,2746.0,0.05197219]
[1646812898468,0.91122,2746.3,2746.0,1.19339302]
[1646812898671,0.91122,2746.3,2746.0,0.05197219]
[1646812901184,0.19019607,2746.6,2746.0,0.05197219]
[1646812901677,3.5373,2746.8,2746.0,0.05197219]
[1646812902115,3.5373,2746.8,2746.1,2.40252405]
[1646812902312,3.5373,2746.8,2746.1,0.91099]
[1646812902713,3.38982195,2746.9,2746.1,0.91099]
[1646812902913,1.5,2746.5,2746.1,1.27799]
[1646812903116,1.5,2746.5,2746.2,1.49151516]
[1646812903715,1.5,2746.5,2746.4,1.04976018]
[1646812905618,1.5,2746.5,2746.1,0.91099]
[1646812905876,1.5,2746.5,2746.2,1.49154113]
[1646812906767,1.5,2746.5,2746.1,0.91099]
[1646812906967,1.5,2746.5,2746.4,0.89338842]
[1646812908370,2.283414,2746.5,2746.4,0.89338842]
[1646812908972,2.283414,2746.5,2746.1,0.91099]
[1646812909369,2.283414,2746.5,2746.2,1.49152148]
[1646812910017,2.283414,2746.5,2746.2,2.56763066]
[1646812910420,2.283414,2746.5,2746.2,1.07610918]
[1646812911420,2.283414,2746.5,2746.3,1.4914626]
[1646812912620,2.283414,2746.5,2746.3,1.49335988]
[1646812913672,2.283414,2746.5,2746.3,1.49525716]
[1646812914676,2.283414,2746.5,2746.3,1.49715444]
[1646812914876,2.283414,2746.5,2746.4,1.4914626]
[1646812915076,0.6924716,2746.5,2746.4,1.4914626]
[1646812915478,0.6924716,2746.5,2746.4,0.367]
[1646812915677,0.6924716,2746.5,2746.4,1.91047611]
[1646812915876,0.6924716,2746.5,2746.4,1.91237339]
[1646812916282,1.2162,2747.6,2746.4,1.91237339]
[1646812916283,2.34129625,2747.9,2746.6,6.5]
[1646812916480,1.0,2747.9,2746.7,5.79537015]
[1646812916683,1.0,2747.9,2747.5,1.1541656]
[1646812916882,1.0,2747.9,2747.0,0.91031]
[1646812916883,1.01509688,2747.9,2747.0,0.91031]
[1646812917119,1.01509688,2747.9,2747.2,0.367]
[1646812917518,1.01509688,2747.9,2747.6,0.91033]
[1646812917717,1.0,2747.9,2747.6,0.91033]
[1646812918718,1.0,2747.9,2747.5,0.10584166]
[1646812918919,1.0,2747.9,2747.6,0.1819]
[1646812919118,3.5,2747.8,2746.8,1.82136]
[1646812919318,3.5,2747.8,2747.6,0.1819]
[1646812919319,3.96782303,2747.8,2747.6,0.1819]
[1646812919522,3.96782303,2747.8,2746.6,0.00189728]
[1646812919523,6.5,2747.6,2746.6,0.00189728]
[1646812919726,10.1819,2747.5,2746.6,0.00189728]
[1646812919924,10.34972303,2747.5,2746.6,0.00189728]
[1646812920124,6.84972303,2747.5,2746.6,0.00189728]
[1646812920323,6.6819,2747.5,2746.6,0.00189728]
[1646812920525,0.1819,2747.5,2746.7,1.82147]
[1646812920967,0.13819997,2747.6,2746.7,1.82147]
[1646812921168,0.13819997,2747.6,2746.8,0.9108]
[1646812921568,0.13819997,2747.6,2746.9,0.90894138]
[1646812921967,0.13819997,2747.6,2746.9,0.91083866]
[1646812922567,1.1819,2747.9,2746.9,2.18827526]
[1646812922770,0.00123419,2747.4,2747.0,2.73129]
[1646812923567,3.0,2747.2,2747.0,2.73129]
[1646812923771,1.5,2747.2,2747.0,5.73129]
[1646812923968,1.5,2747.2,2747.0,2.78515947]
[1646812924170,0.1819,2747.6,2747.0,2.78515947]
[1646812925022,0.00123419,2747.4,2747.0,2.83902894]
[1646812925621,0.00123419,2747.4,2747.0,0.10773894]
[1646812926022,0.182,2747.7,2747.0,0.15971113]
[1646812926221,0.182,2747.7,2747.0,0.16160841]
[1646812926222,3.5,2747.7,2747.0,0.16160841]
[1646812926425,0.00123419,2747.3,2747.0,0.16160841]
[1646812927023,0.00123419,2747.3,2747.0,0.2135806]
[1646812927223,0.1819,2747.6,2747.0,0.21547788]
[1646812927426,0.9108,2747.5,2747.0,0.21547788]
[1646812927623,0.00123419,2747.3,2747.0,0.21547788]
[1646812927823,0.00123419,2747.3,2746.8,0.43955053]
[1646812927824,5.5,2747.1,2746.8,0.43955053]
[1646812928025,6.5,2747.0,2746.6,0.05386947]
[1646812928224,6.5,2747.0,2746.8,0.00189728]
[1646812928473,6.66782303,2747.0,2746.8,0.00189728]
[1646812928673,0.1819,2746.9,2746.8,0.00189728]
[1646812928875,0.18313419,2746.9,2746.8,0.00189728]
[1646812929073,0.18313419,2746.9,2746.8,0.05386947]
[1646812929474,0.00123419,2746.9,2746.8,0.05386947]
[1646812929677,6.5,2746.8,2746.6,0.05386947]
[1646812929980,7.41104,2746.8,2746.6,0.05386947]
[1646812930176,7.71104,2746.8,2746.6,0.05386947]
[1646812930580,1.82231,2746.7,2746.6,0.05386947]
[1646812930777,3.04155216,2746.7,2746.6,0.05386947]
[1646812931179,3.32231,2746.7,2746.6,0.05386947]
[1646812931380,5.5,2746.6,2746.5,0.00189728]
[1646812931578,6.5,2746.5,2745.7,2.94]
[1646812931778,1.09318,2746.4,2745.7,2.94]
[1646812931978,1.09318,2746.4,2745.6,4.41122]
[1646812931979,1.04318,2746.4,2745.6,0.91122]
[1646812932417,1.04318,2746.4,2746.0,0.00605839]
[1646812932819,0.86128,2746.4,2746.0,0.00605839]
[1646812933417,0.86128,2746.4,2745.8,3.5]
[1646812933618,0.85938272,2746.4,2746.0,0.00605839]
[1646812933816,1.02720575,2746.4,2746.0,0.00605839]
[1646812934218,0.16782303,2746.4,2746.0,0.00605839]
[1646812934420,1.5,2746.7,2745.9,0.91112]
[1646812934624,1.1589,2747.3,2746.0,4.99165434]
[1646812934824,2.98376,2747.4,2746.1,7.99165434]
[1646812934825,0.00096,2747.4,2746.1,7.99165434]
[1646812935023,0.00123393,2746.9,2746.3,2.49016258]
[1646812935226,0.182,2747.5,2747.1,1.19766705]
[1646812935432,0.00096,2747.4,2747.2,3.5]
[1646812935624,0.1819,2747.7,2747.2,3.5]
[1646812935881,1.0,2747.9,2747.1,1.19766705]
[1646812936068,1.0,2747.9,2747.2,3.5]
[1646812936267,1.0,2747.9,2747.2,0.91049]
[1646812936667,1.0,2747.9,2747.0,7.70750524]
[1646812936668,1.0,2747.9,2747.0,4.20750524]
[1646812936969,0.1819,2747.8,2747.0,4.20750524]
[1646812937566,0.1819,2747.8,2747.0,1.82097]
[1646812937969,0.1819,2747.8,2747.2,0.91047]
[1646812938169,1.0,2747.9,2747.3,3.5]
[1646812938369,1.0,2747.9,2747.7,1.00951437]
[1646812938370,1.00705238,2747.9,2747.7,1.00951437]
[1646812938769,1.00705238,2747.9,2747.6,1.82079]
[1646812939371,1.0,2747.9,2747.6,1.82079]
[1646812939626,1.00122203,2747.9,2747.6,1.82079]
[1646812940530,1.0,2747.9,2747.6,1.82079]
[1646812940730,1.0,2747.9,2747.7,3.5]
[1646812940930,1.00122203,2747.9,2747.7,3.5]
[1646812941130,1.00122203,2747.9,2747.6,1.82079]
[1646812941733,1.0,2747.9,2747.6,1.82079]
[1646812942130,1.00122203,2747.9,2747.6,1.82079]
[1646812942731,1.00122203,2747.9,2747.6,2.9987575]
[1646812942933,1.0,2747.9,2747.6,2.9987575]
[1646812943383,1.00122203,2747.9,2747.7,3.5]
[1646812943570,1.00122203,2747.9,2747.6,2.9987575]
[1646812944171,1.0,2747.9,2747.6,2.9987575]
[1646812944375,1.00122203,2747.9,2747.6,1.82079]
[1646812945174,0.16861184,2747.8,2747.3,7.19269565]
[1646812945576,0.16861184,2747.8,2747.4,1.0733674]
[1646812945974,0.16861184,2747.8,2747.4,1.9839174]
[1646812946173,0.35051184,2747.8,2747.4,1.9839174]
[1646812946376,0.35051184,2747.8,2747.4,5.6839174]
[1646812946776,0.65051184,2747.8,2747.4,4.61055]
[1646812946973,0.00122203,2747.7,2747.4,3.7]
[1646812947223,0.16983387,2747.7,2747.4,3.7]
[1646812947421,0.16861184,2747.6,2747.4,3.7]
[1646812948022,0.16983387,2747.6,2747.4,3.7]
[1646812948224,0.00122203,2747.6,2747.4,3.7]
[1646812949022,1.0,2747.9,2747.4,3.7]
[1646812949425,0.1819,2747.8,2747.4,3.7]
[1646812950127,1.3,2747.9,2747.4,3.7]
[1646812950969,1.3,2747.9,2747.6,0.86735151]
[1646812951170,1.0,2747.9,2747.6,0.86735151]
[1646812951769,1.00122203,2747.9,2747.6,0.86735151]
[1646812952169,1.00122203,2747.9,2747.4,8.11049]
[1646812952568,1.0,2747.9,2747.4,8.11049]
[1646812952972,0.00122203,2747.8,2747.4,8.11049]
[1646812953169,0.00122203,2747.8,2747.5,1.02733911]
[1646812953375,0.00122203,2747.8,2747.6,5.3207]
[1646812953572,0.00122203,2747.8,2747.6,1.8207]
[1646812953973,1.0,2747.9,2747.6,1.8207]
[1646812954373,0.00114589,2747.8,2747.6,1.8207]
[1646812954825,0.00114589,2747.8,2747.4,9.98181925]
[1646812955125,1.0,2747.9,2747.5,1.07439075]
[1646812955324,0.00114589,2747.8,2747.5,1.07439075]
[1646812956226,1.0,2747.9,2747.5,1.07439075]
[1646812956627,0.00114589,2747.8,2747.5,4.57439075]
[1646812956829,1.0,2747.9,2747.6,5.5]
[1646812957027,1.0,2747.9,2747.7,3.5]
[1646812957429,1.0,2747.9,2747.5,4.57439075]
[1646812958027,1.0,2747.9,2747.5,1.07439075]
[1646812958228,1.0,2747.9,2747.5,4.57439075]
[1646812958472,1.0,2747.9,2747.5,1.07439075]
[1646812958778,1.0,2747.9,2747.4,9.98182925]
[1646812959779,1.0,2747.9,2747.5,0.94943397]
[1646812960182,1.0,2747.9,2747.5,4.44943397]
[1646812960981,1.0,2747.9,2747.5,0.94943397]
[1646812961181,1.0,2747.9,2747.5,4.44943397]
[1646812961384,0.00121916,2747.8,2747.5,4.44943397]
[1646812962324,1.0,2747.9,2747.5,0.94943397]
[1646812962522,0.00121916,2747.8,2747.5,0.94943397]
[1646812962722,0.00121916,2747.8,2747.5,4.44943397]
[1646812963322,0.00121916,2747.8,2747.6,1.093]
[1646812963523,1.0,2747.9,2747.6,1.093]
[1646812963722,0.00121916,2747.8,2747.6,1.093]
[1646812964322,0.00121916,2747.8,2747.7,4.593]
[1646812964725,1.0,2747.9,2747.6,1.093]
[1646812964926,1.00121916,2747.9,2747.6,1.093]
[1646812965326,0.02316062,2748.3,2747.8,1.093]
[1646812965528,0.02316062,2748.3,2748.1,1.093]
[1646812965728,0.02316062,2748.3,2748.2,1.093]
[1646812965978,0.01422368,2748.5,2748.2,6.46279136]
[1646812966972,0.18283552,2748.5,2748.2,6.46279136]
[1646812967372,0.18283552,2748.5,2748.2,5.03067982]
[1646812967573,0.18283552,2748.5,2747.4,0.42399078]
[1646812967574,0.01234795,2748.3,2747.4,0.42399078]
[1646812967775,0.01215636,2747.5,2747.4,0.42399078]
[1646812968176,0.00096,2748.1,2747.4,0.42399078]
[1646812968374,5.59777184,2748.2,2747.4,0.42399078]
[1646812968575,0.16861184,2748.0,2747.4,0.42399078]
[1646812969375,1.99012184,2748.0,2747.4,0.42399078]
[1646812969830,0.16861184,2747.9,2747.4,0.42399078]
[1646812970032,0.16861184,2747.9,2747.5,3.5]
[1646812970234,4.9273,2748.2,2747.4,1.33449078]
[1646812970235,0.1819,2747.8,2747.4,1.33449078]
[1646812970435,0.1819,2748.1,2747.4,1.33449078]
[1646812971032,0.1819,2748.1,2747.6,0.99492869]
[1646812971033,0.00121834,2748.0,2747.6,0.99492869]
[1646812971233,0.1819,2747.9,2747.6,0.99492869]
[1646812971433,0.18311834,2748.0,2747.6,0.99492869]
[1646812972132,0.1819,2748.0,2747.6,0.99492869]
[1646812972333,0.00121843,2748.0,2747.7,3.5]
[1646812972534,0.00121843,2748.0,2747.6,0.99492869]
[1646812972932,0.00121843,2748.0,2747.7,3.5]
[1646812973132,0.20504696,2748.3,2747.7,3.5]
[1646812973392,0.1819,2748.4,2747.7,5.32044]
[1646812973680,1.17016516,2748.8,2748.0,3.367]
[1646812973681,0.02314696,2748.3,2748.0,3.367]
[1646812973877,0.02314696,2748.3,2748.1,3.867]
[1646812974075,0.02314696,2748.3,2748.1,3.5]
[1646812974276,0.02314696,2748.3,2747.9,10.0]
[1646812974479,13.79300605,2748.8,2747.9,10.0]
[1646812974881,13.79300605,2748.8,2748.4,0.97674812]
[1646812975081,14.05247381,2748.8,2748.4,4.47674812]
[1646812975283,13.79204605,2748.8,2748.4,4.47674812]
[1646812975482,13.79204605,2748.8,2748.4,1.34374812]
[1646812975681,13.79204605,2748.8,2748.5,0.02032178]
[1646812975881,13.82049341,2748.8,2748.5,0.02032178]
[1646812976084,14.00239341,2748.8,2748.5,0.02032178]
[1646812976385,13.82049341,2748.8,2748.5,0.02032178]
[1646812976582,13.82049341,2748.8,2748.5,1.08131635]
[1646812977133,13.82049341,2748.8,2748.6,3.867]
[1646812977134,8.36174341,2748.8,2748.6,3.867]
[1646812977329,18.31903089,2748.7,2747.8,3.0]
[1646812977529,18.31903089,2748.7,2747.9,1.8577327]
[1646812977530,11.81903089,2748.7,2747.9,1.8577327]
[1646812977730,8.31903089,2748.7,2748.0,1.4907327]
[1646812977929,8.34747825,2748.7,2748.1,1.4907327]
[1646812978131,8.34747825,2748.7,2747.4,3.0]
[1646812978329,8.34747825,2748.7,2748.1,1.22008993]
[1646812978530,8.34747825,2748.7,2747.7,3.91035]
[1646812978730,8.29747825,2748.7,2748.0,1.82025]
[1646812978931,8.29747825,2748.7,2748.1,1.49081304]
[1646812979132,8.29747825,2748.7,2748.0,1.82025]
[1646812979330,8.29747825,2748.7,2748.1,1.49081305]
[1646812979530,8.29747825,2748.7,2748.1,3.56704213]
[1646812979739,8.29747825,2748.7,2748.3,0.367]
[1646812979935,8.29747825,2748.7,2748.5,11.567]
[1646812980137,8.29747825,2748.7,2748.5,15.067]
[1646812980336,0.01426516,2748.8,2748.7,6.867]
[1646812980534,0.0361859,2749.7,2748.9,6.867]
[1646812980735,1.43100968,2750.3,2749.4,3.0]
[1646812980736,0.60609242,2750.2,2749.4,3.0]
[1646812980994,1.2155009,2751.8,2750.2,6.5]
[1646812981293,1.25677404,2752.2,2750.4,0.8609]
[1646812981294,0.62485556,2752.2,2750.4,0.8609]
[1646812981496,3.89044769,2752.7,2750.4,0.8609]
[1646812981497,0.12748336,2752.6,2751.4,3.0]
[1646812981689,11.2047413,2753.2,2752.5,0.0123685]
[1646812981690,0.0047413,2753.2,2752.5,0.0123685]
[1646812981889,0.0047413,2753.2,2753.1,0.01294737]
[1646812981890,0.29995171,2753.2,2753.1,0.01294737]
[1646812982091,1.07919006,2753.8,2753.1,3.01294737]
[1646812982297,0.2963542,2755.0,2753.8,0.8609]
[1646812982298,1.79460848,2754.6,2753.8,0.8609]
[1646812982493,1.33109463,2754.7,2754.5,3.8609]
[1646812982691,0.29226097,2755.5,2754.5,3.8609]
[1646812982692,1.77457428,2755.3,2754.7,7.3609]
[1646812982889,0.05150402,2756.1,2755.8,0.8109]
[1646812983090,4.26052534,2756.8,2756.0,0.8109]
[1646812983288,4.26052534,2756.8,2755.3,3.5]
[1646812983492,4.26052534,2756.8,2755.2,0.01249947]
[1646812983493,0.06875204,2755.3,2755.2,0.01249947]
[1646812983692,0.06875204,2755.3,2755.2,3.51249947]
[1646812983693,0.08306464,2755.3,2755.2,3.51249947]
[1646812983894,0.16471726,2755.9,2755.2,3.51249947]
[1646812983895,0.63194582,2756.8,2755.4,6.5]
[1646812984092,0.63194582,2756.8,2755.9,0.01208729]
[1646812984093,0.95294891,2756.6,2755.9,0.01208729]
[1646812984293,1.0,2757.6,2755.9,0.01208729]
[1646812984295,0.0302177,2757.6,2755.9,0.01208729]
[1646812984493,6.5,2756.4,2755.5,0.01265479]
[1646812984731,6.5,2756.4,2754.5,11.2]
[1646812984937,3.0,2756.2,2754.9,0.01292587]
[1646812985131,0.86784916,2755.0,2754.1,3.5]
[1646812985332,3.5,2754.9,2754.0,0.01252673]
[1646812985531,3.5,2754.9,2753.8,1.0]
[1646812985532,0.06423185,2754.9,2753.8,1.0]
[1646812985733,0.86784916,2755.0,2753.9,14.7]
[1646812985734,0.06366342,2754.8,2753.9,14.7]
[1646812985933,0.06366342,2754.8,2754.1,11.2]
[1646812986133,0.17754797,2755.3,2754.3,11.2]
[1646812986134,0.063095,2754.7,2754.3,11.2]
[1646812986334,0.063095,2754.7,2754.4,0.1814]
[1646812986534,0.06252658,2754.6,2754.4,0.1814]
[1646812986936,0.039348,2755.3,2754.5,1.0]
[1646812987133,0.039348,2755.3,2753.9,3.7]
[1646812987134,6.45,2755.1,2753.9,3.7]
[1646812987338,3.5,2755.0,2753.9,3.7]
[1646812987536,0.06480027,2755.0,2753.9,3.7]
[1646812987942,0.06480027,2755.0,2753.9,4.067]
[1646812987943,0.17836779,2755.0,2753.9,4.067]
[1646812988134,0.17836779,2755.0,2753.9,3.7]
[1646812988699,0.039348,2755.3,2755.1,0.53503557]
[1646812988896,0.039348,2755.3,2755.2,0.01293391]
[1646812988897,0.086776,2755.3,2755.2,0.01293391]
[1646812989096,0.0190712,2755.3,2755.2,0.01293391]
[1646812989297,0.03517628,2756.6,2755.2,0.01293391]
[1646812989298,0.03517628,2756.6,2755.2,4.37023391]
[1646812989500,0.01165568,2756.1,2755.2,0.87023391]
[1646812989697,0.01165568,2756.1,2755.5,1.0]
[1646812989899,0.01165568,2756.1,2755.3,3.5]
[1646812990100,0.01165568,2756.1,2755.4,3.5]
[1646812990298,0.01165568,2756.1,2755.1,1.17583557]
[1646812990500,0.01165568,2756.1,2754.3,2.39241288]
[1646812990501,5.5,2755.9,2754.3,2.39241288]
[1646812990705,3.0,2755.7,2753.5,11.2]
[1646812990903,3.51232584,2755.8,2753.5,11.2]
[1646812990904,0.01236955,2755.2,2753.5,11.2]
[1646812991103,3.51236955,2755.2,2753.5,11.2]
[1646812991304,0.90864,2755.0,2753.7,11.2]
[1646812991506,3.51236955,2755.2,2753.9,11.567]
[1646812991507,0.16656781,2755.1,2753.9,11.567]
[1646812991703,0.3,2754.9,2754.1,11.2012]
[1646812991902,0.3,2754.9,2754.3,11.2]
[1646812992155,0.3,2754.9,2752.8,19.83142881]
[1646812992156,3.0,2754.4,2752.8,19.83142881]
[1646812992344,3.0,2754.4,2751.9,1.0]
[1646812992345,1.00862284,2754.1,2751.9,1.0]
[1646812992545,2.0,2752.8,2751.9,0.5]
[1646812992749,2.0,2752.8,2751.2,1.0]
[1646812992750,4.0,2752.6,2751.2,1.0]
[1646812992947,3.0,2752.4,2751.2,1.0]
[1646812993143,1.0,2752.1,2751.2,1.0]
[1646812993343,1.0,2752.1,2751.5,1.22709838]
[1646812993546,0.3,2752.1,2751.6,3.5]
[1646812993743,0.6416,2753.2,2750.8,26.302707]
[1646812993744,0.00096,2752.4,2752.1,0.7582879]
[1646812993944,5.07947673,2753.7,2752.1,0.7582879]
[1646812994142,0.6416,2753.2,2752.1,0.7582879]
[1646812994644,4.53099685,2753.1,2752.1,0.7582879]
[1646812994845,0.6416,2752.8,2752.1,0.6616579]
[1646812995044,4.1416,2752.8,2752.1,0.6616579]
[1646812995247,6.5,2752.7,2750.8,0.7617]
[1646812995444,3.5,2752.6,2750.8,0.7617]
[1646812995649,0.96196835,2751.2,2750.8,0.7617]
[1646812995881,3.5,2752.5,2750.8,0.7617]
[1646812996080,0.00096,2752.4,2750.8,0.7617]
[1646812996282,3.0,2751.6,2750.8,0.7617]
[1646812996581,0.6416,2751.7,2750.8,0.7617]
[1646812996582,1.19338019,2751.4,2750.8,0.7617]
[1646812996781,1.15377851,2750.9,2750.8,0.7617]
[1646812996980,3.63819997,2751.5,2750.8,0.7617]
[1646812997181,0.13819997,2751.5,2750.8,0.7617]
[1646812997385,0.43819997,2751.5,2750.8,0.7617]
[1646812997888,0.43819997,2751.5,2749.5,0.63765831]
[1646812997889,6.5,2751.2,2749.5,0.63765831]
[1646812998084,6.5,2751.2,2749.5,0.4124]
[1646812998085,4.40986,2751.1,2749.5,0.4124]
[1646812998281,4.71082,2751.1,2749.5,0.4124]
[1646812998883,1.18066734,2749.9,2749.5,0.4124]
[1646812999083,7.71082,2751.1,2750.0,2.33383224]
[1646812999084,3.0,2750.9,2750.0,2.33383224]
[1646812999284,3.0,2750.9,2749.5,0.4124]
[1646812999285,6.5,2750.3,2749.5,0.4124]
[1646812999485,10.0,2750.3,2749.5,0.4124]
[1646812999937,10.0,2750.3,2749.0,17.87317622]
[1646812999938,3.0,2750.2,2749.0,17.87317622]
[1646813000132,3.0,2750.0,2749.0,17.87317622]
[1646813000340,3.0,2749.4,2749.0,17.87317622]
[1646813000533,3.0,2749.2,2747.2,2.2467]
[1646813000734,3.0,2749.2,2747.2,0.03]
[1646813000735,0.91067,2748.8,2747.2,0.03]
[1646813000934,0.91072,2748.5,2747.3,0.04376861]
[1646813001133,10.445,2748.4,2747.0,2.07586464]
[1646813001330,10.445,2748.4,2746.5,0.00610356]
[1646813001540,2.7115351,2748.7,2746.7,6.5]
[1646813001740,0.16679659,2749.2,2746.7,6.5]
[1646813001741,0.14122487,2750.0,2747.3,3.0]
[1646813001935,0.6416,2750.7,2747.8,3.0]
[1646813002133,2.8867,2751.1,2748.7,3.0]
[1646813002332,2.8867,2751.1,2748.0,6.5]
[1646813002333,2.8867,2751.1,2748.8,3.945]
[1646813002532,1.00233957,2750.0,2749.0,0.98288339]
[1646813002729,1.00233957,2750.0,2749.1,0.445]
[1646813003379,1.00233957,2750.0,2748.6,0.74280633]
[1646813003380,0.6416,2749.5,2748.6,0.74280633]
[1646813003583,0.6416,2749.5,2747.5,3.5]
[1646813003584,6.5,2749.4,2747.5,3.5]
[1646813003977,0.15054156,2749.5,2747.6,0.445]
[1646813004180,0.13819997,2749.5,2747.7,3.5]
[1646813004377,0.13819997,2749.5,2747.8,0.445]
[1646813004578,0.00433077,2749.0,2747.9,3.5]
[1646813004781,0.00433077,2749.0,2748.0,0.445]
[1646813004981,0.00433077,2749.0,2748.1,4.52375436]
[1646813005183,0.00433077,2749.0,2747.3,3.5]
[1646813005380,1.4943864,2749.1,2747.3,3.5]
[1646813005581,1.4943864,2749.1,2747.1,1.93983177]
[1646813005582,0.01216265,2748.9,2747.1,1.93983177]
[1646813005785,3.0,2748.6,2748.2,0.00650647]
[1646813005984,0.445,2748.6,2748.2,0.00650647]
[1646813006182,1.21400813,2748.5,2748.2,0.00650647]
[1646813006582,1.21400813,2748.5,2746.0,4.0790169]
[1646813006583,3.01207382,2748.3,2746.2,3.53463488]
[1646813006985,0.01267841,2747.5,2746.2,0.03463488]
[1646813007241,0.0129301,2747.0,2746.2,0.03463488]
[1646813007533,1.0,2747.6,2746.2,0.03463488]
[1646813007534,0.01224294,2747.3,2746.2,0.03463488]
[1646813007728,0.6416,2747.3,2746.2,0.03463488]
[1646813007929,0.01273632,2747.1,2746.0,0.02247424]
[1646813008128,10.445,2747.2,2746.0,0.02247424]
[1646813008129,0.94543462,2746.4,2746.0,0.02247424]
[1646813008332,0.445,2746.3,2746.0,0.02247424]
[1646813008728,2.67583462,2746.4,2746.3,1.0231715]
[1646813008729,2.03423462,2746.4,2746.3,1.0231715]
[1646813009933,2.03423462,2746.4,2745.4,0.211877]
[1646813009934,1.0231,2746.3,2745.7,9.672e-05]
[1646813010139,3.945,2746.2,2745.7,9.672e-05]
[1646813010334,4.0882,2746.2,2745.7,9.672e-05]
[1646813010549,4.0882,2746.2,2745.2,0.10417464]
[1646813010550,0.6416,2745.7,2745.2,0.10417464]
[1646813010736,0.01295493,2745.3,2744.4,0.03878688]
[1646813010983,0.0124148,2744.7,2744.4,0.1124036]
[1646813011176,0.445,2744.6,2744.4,0.1124036]
[1646813011386,1.229,2745.5,2744.6,0.80885371]
[1646813011586,1.0866,2745.5,2744.6,0.80885371]
[1646813011779,1.13227632,2745.0,2744.6,0.80885371]
[1646813011980,3.5,2745.4,2744.6,0.80885371]
[1646813012181,1.0866,2745.5,2744.6,0.80885371]
[1646813012381,0.6416,2745.3,2744.6,5.371e-05]
[1646813012581,0.6416,2744.8,2744.6,5.371e-05]
[1646813012782,0.6416,2744.8,2744.2,0.03462224]
[1646813012783,6.5,2744.6,2744.3,0.0124816]
[1646813012979,7.14735032,2744.7,2744.2,0.02502632]
[1646813012980,6.945,2744.5,2744.2,0.02502632]
[1646813013182,6.5,2744.3,2743.7,3.03460556]
[1646813013383,6.5,2744.3,2744.1,0.0263017]
[1646813013384,0.445,2744.2,2744.1,0.0263017]
[1646813014283,1.06958614,2743.8,2743.7,3.03460556]
[1646813015134,0.445,2744.2,2743.7,3.03460556]
[1646813015335,0.91204,2744.5,2743.7,3.03460556]
[1646813015734,5.2558936,2744.7,2743.7,3.03460556]
[1646813015934,5.2558936,2744.7,2743.7,0.03460556]
[1646813015935,0.445,2744.6,2743.7,0.03460556]
[1646813016141,6.5,2744.2,2743.2,0.04511696]
[1646813016336,6.5,2743.1,2742.1,0.19585312]
[1646813016537,0.01270827,2742.5,2742.4,0.07085088]
[1646813016737,0.01270827,2742.5,2742.3,7.84e-06]
[1646813016738,6.5,2742.4,2742.3,7.84e-06]
[1646813016934,6.95768218,2742.4,2742.3,0.02472064]
[1646813017135,26.86966224,2742.4,2742.3,0.02472064]
[1646813017338,8.14936737,2742.4,2742.3,0.02472064]
[1646813017537,8.14936737,2742.4,2742.1,0.01365312]
[1646813017538,6.5,2742.3,2742.1,0.01365312]
[1646813017739,0.445,2742.2,2742.1,0.01365312]
[1646813018137,6.5,2742.1,2741.7,0.0738968]
[1646813018388,6.5,2742.1,2741.9,0.09134776]
[1646813018389,0.445,2742.0,2741.9,0.09134776]
[1646813018982,0.445,2742.0,2741.7,0.0738968]
[1646813018983,6.67845156,2741.9,2741.7,0.0738968]
[1646813019183,0.445,2741.8,2741.7,0.10641296]
[1646813019583,0.445,2742.3,2741.7,0.10641296]
[1646813019782,0.32707071,2743.0,2741.7,0.10641296]
[1646813019783,0.1376,2742.5,2741.8,3.0]
[1646813019983,0.445,2742.7,2742.3,3.0]
[1646813020183,3.94106598,2742.9,2742.3,3.0]
[1646813020583,0.9799766,2743.0,2742.0,0.86946]
[1646813020584,0.9799766,2743.0,2742.0,0.87565419]
[1646813020782,3.5,2743.3,2742.0,0.87565419]
[1646813020783,0.1472,2743.3,2742.6,3.0]
[1646813020985,0.82604312,2743.4,2742.6,3.0]
[1646813021391,0.65426199,2743.7,2743.3,3.0]
[1646813021392,0.01266199,2743.7,2743.3,3.0]
[1646813021585,0.38092804,2744.2,2743.3,3.0]
[1646813021782,0.38092804,2744.2,2742.2,4.59425]
[1646813021986,0.38092804,2744.2,2743.0,1.1922887]
[1646813022229,0.01266297,2744.3,2744.1,3.0]
[1646813022530,0.20321228,2745.1,2743.8,3.0]
[1646813022729,3.49805127,2745.2,2743.9,3.5]
[1646813022730,0.01280014,2745.0,2743.9,3.5]
[1646813022930,3.49805127,2745.2,2744.5,3.0]
[1646813023130,3.49805127,2745.2,2744.0,1.04798731]
[1646813023331,3.49805127,2745.2,2744.5,3.0]
[1646813023535,0.19036297,2745.3,2744.1,3.6821]
[1646813023536,0.19036297,2745.3,2744.9,3.0]
[1646813023733,0.5,2745.8,2744.7,3.0]
[1646813023947,0.19033651,2745.7,2744.7,3.0]
[1646813024132,0.19033651,2745.7,2744.5,3.0]
[1646813024331,0.19033651,2745.7,2744.6,3.0]